bitfinex/quotes_BTCUSD_20250711
["timestamp","ask_amount","ask_price","bid_price","bid_amount"]
[1752246347190,5.55413783,117820.0,117810.0,0.1]
[1752246347450,5.55413783,117820.0,117800.0,0.0024]
[1752246347451,6.21824054,117810.0,117800.0,0.0024]
[1752246347685,6.30744675,117810.0,117800.0,0.0024]
[1752246347884,6.30744675,117810.0,117780.0,0.1024]
[1752246347885,0.18677256,117790.0,117780.0,0.1024]
[1752246348090,0.82980635,117790.0,117780.0,0.1024]
[1752246348358,0.85531389,117790.0,117780.0,0.1024]
[1752246348570,1.22078989,117790.0,117780.0,0.11264]
[1752246348772,1.22078989,117790.0,117780.0,0.10289932]
[1752246348773,1.19528235,117790.0,117780.0,0.10289932]
[1752246349013,1.18679303,117790.0,117780.0,0.10289932]
[1752246349226,0.20375924,117790.0,117780.0,0.10289932]
[1752246349425,0.34591924,117790.0,117780.0,0.10289932]
[1752246349643,0.03396532,117790.0,117780.0,0.15218925]
[1752246349863,0.02546832,117790.0,117780.0,0.15218925]
[1752246350493,0.02546832,117790.0,117780.0,0.15751925]
[1752246350707,0.68756649,117790.0,117780.0,0.10822932]
[1752246350914,1.02961649,117790.0,117780.0,0.10638584]
[1752246351142,1.17161649,117790.0,117780.0,0.10638584]
[1752246351357,1.42471649,117790.0,117780.0,0.10638584]
[1752246351560,1.44301649,117790.0,117780.0,0.10638584]
[1752246351994,1.44301649,117790.0,117780.0,0.10738584]
[1752246352201,1.65086638,117790.0,117780.0,0.10738584]
[1752246352470,0.52680427,117770.0,117760.0,0.0024]
[1752246352680,1.27964806,117770.0,117760.0,0.00254951]
[1752246352898,1.44739439,117770.0,117760.0,0.00254951]
[1752246353098,1.42156806,117770.0,117760.0,0.00254951]
[1752246354032,1.45049439,117770.0,117760.0,0.00254951]
[1752246354709,1.45249439,117770.0,117760.0,0.00254951]
[1752246355130,1.28164806,117770.0,117760.0,0.00463951]
[1752246355364,0.15221055,117770.0,117760.0,0.02717951]
[1752246355612,0.002,117770.0,117760.0,0.04989746]
[1752246355837,0.002,117770.0,117760.0,0.30976824]
[1752246356087,0.002,117770.0,117760.0,0.49658866]
[1752246356316,0.002,117770.0,117760.0,0.48809703]
[1752246356527,0.002,117770.0,117760.0,0.32675185]
[1752246356746,0.002,117770.0,117760.0,0.30976824]
[1752246356958,0.02547012,117780.0,117770.0,0.03384085]
[1752246357176,0.19527866,117780.0,117770.0,0.12460078]
[1752246357386,0.68758241,117780.0,117770.0,0.00533]
[1752246357645,0.16982253,117770.0,117760.0,0.01709036]
[1752246357908,0.0339632,117770.0,117760.0,0.10576029]
[1752246358121,0.19529561,117770.0,117760.0,0.10576029]
[1752246358543,0.19529561,117770.0,117760.0,0.00578951]
[1752246358544,0.82931849,117770.0,117760.0,0.00578951]
[1752246358759,1.16931849,117770.0,117760.0,0.00254951]
[1752246359617,1.19479749,117770.0,117760.0,0.00254951]
[1752246359823,1.2217375,117770.0,117760.0,0.00254951]
[1752246360027,1.30716743,117770.0,117760.0,0.00254951]
[1752246360234,1.2411375,117770.0,117760.0,0.00254951]
[1752246360459,1.4911375,117770.0,117760.0,0.00254951]
[1752246360663,0.84862371,117770.0,117760.0,0.00254951]
[1752246360875,1.4911775,117770.0,117760.0,0.00254951]
[1752246361091,1.44487749,117770.0,117760.0,0.00254951]
[1752246361310,0.9440837,117770.0,117760.0,0.00254951]
[1752246361529,1.44683749,117770.0,117760.0,0.00254951]
[1752246362447,1.44783749,117770.0,117760.0,0.00254951]
[1752246363878,1.45093749,117770.0,117760.0,0.00254951]
[1752246364046,1.49423802,117770.0,117760.0,0.00254951]
[1752246364260,1.49628802,117770.0,117760.0,0.00254951]
[1752246364839,1.01793734,117770.0,117760.0,0.00254951]
[1752246365076,1.49725113,117770.0,117760.0,0.00254951]
[1752246365255,1.47480802,117770.0,117760.0,0.00463951]
[1752246365429,1.47480802,117770.0,117760.0,0.00254951]
[1752246365658,1.44980749,117770.0,117760.0,0.00254951]
[1752246365876,1.50035113,117770.0,117760.0,0.00254951]
[1752246366033,1.60538106,117770.0,117760.0,0.00254951]
[1752246366706,1.53955113,117770.0,117760.0,0.00254951]
[1752246366906,1.51995113,117770.0,117760.0,0.00254951]
[1752246367857,1.44980749,117770.0,117760.0,0.00254951]
[1752246368072,0.6969237,117770.0,117760.0,0.00787951]
[1752246368267,0.5552837,117770.0,117760.0,0.00787951]
[1752246368479,0.6970037,117770.0,117760.0,0.00787951]
[1752246368902,1.19779749,117770.0,117760.0,0.00787951]
[1752246369121,1.19984749,117770.0,117760.0,0.00463951]
[1752246369536,1.19984749,117770.0,117760.0,0.00254951]
[1752246369958,1.22244749,117770.0,117760.0,0.00254951]
[1752246370192,1.20294749,117770.0,117760.0,0.00254951]
[1752246370431,0.6990537,117770.0,117760.0,0.00463951]
[1752246370645,1.19984749,117770.0,117760.0,0.00463951]
[1752246370925,1.19988749,117770.0,117760.0,0.00463951]
[1752246371909,1.19988749,117770.0,117760.0,0.00254951]
[1752246372315,6.91314114,117770.0,117760.0,0.00254951]
[1752246372898,1.91314114,117770.0,117760.0,1e-08]
[1752246373258,6.93509167,117770.0,117760.0,1e-08]
[1752246373463,6.93909167,117770.0,117760.0,1e-08]
[1752246373773,5.80692865,117760.0,117750.0,1e-08]
[1752246373925,6.92215669,117760.0,117750.0,0.00014972]
[1752246374130,6.97215669,117760.0,117750.0,1e-08]
[1752246374339,6.97215669,117760.0,117740.0,1e-08]
[1752246374340,5.5565438,117750.0,117740.0,1e-08]
[1752246374500,6.83016929,117750.0,117740.0,1e-08]
[1752246374708,6.30437497,117750.0,117740.0,1e-08]
[1752246375063,5.80358118,117750.0,117740.0,1e-08]
[1752246375298,5.91742702,117750.0,117740.0,1e-08]
[1752246375825,6.41822081,117750.0,117740.0,1e-08]
[1752246376046,6.41822081,117750.0,117720.0,0.0024]
[1752246376047,0.42838924,117720.0,117710.0,0.0004]
[1752246376250,1.03487917,117720.0,117710.0,0.00048489]
[1752246376482,6.03808917,117720.0,117710.0,0.00048489]
[1752246376650,6.04148817,117720.0,117710.0,0.00048489]
[1752246377229,6.54228196,117720.0,117710.0,0.00048489]
[1752246377854,6.39952196,117720.0,117710.0,0.00048489]
[1752246378057,6.54424196,117720.0,117710.0,0.00048489]
[1752246378262,6.04344817,117720.0,117710.0,0.00048489]
[1752246378433,6.05885719,117710.0,117700.0,0.0024]
[1752246378646,0.42841956,117700.0,117690.0,0.0004]
[1752246378801,1.41185335,117700.0,117690.0,0.0004]
[1752246379012,1.41506335,117700.0,117690.0,0.00054974]
[1752246379214,0.51843472,117690.0,117680.0,0.002]
[1752246379442,1.02126851,117690.0,117680.0,0.00402]
[1752246380698,1.02126851,117690.0,117680.0,0.00725]
[1752246382029,1.03767023,117690.0,117680.0,0.00725]
[1752246382286,1.03867023,117690.0,117680.0,0.00402]
[1752246382689,1.18139023,117690.0,117680.0,0.002]
[1752246382934,1.18460023,117690.0,117680.0,0.002]
[1752246383448,1.20993416,117690.0,117680.0,0.002]
[1752246383774,1.22884916,117690.0,117680.0,0.002]
[1752246384109,0.72585537,117690.0,117680.0,0.02875]
[1752246384514,0.73435205,117690.0,117680.0,0.02875]
[1752246384641,0.37952672,117690.0,117680.0,0.053625]
[1752246385019,0.023125,117690.0,117680.0,0.053625]
[1752246385204,0.001,117690.0,117680.0,0.32354819]
[1752246385423,0.001,117690.0,117680.0,0.33204573]
[1752246385558,0.001,117690.0,117680.0,0.34054321]
[1752246385763,0.001,117690.0,117680.0,0.34904054]
[1752246385975,0.001,117690.0,117680.0,0.35753765]
[1752246386704,0.001,117690.0,117680.0,0.50025765]
[1752246387110,0.01698636,117710.0,117700.0,0.05654085]
[1752246387312,0.00014944,117710.0,117700.0,0.14722078]
[1752246387656,0.00864424,117710.0,117700.0,0.14722078]
[1752246387784,0.01713911,117710.0,117700.0,0.14722078]
[1752246387985,0.00864424,117710.0,117700.0,0.14722078]
[1752246388504,0.01713918,117710.0,117700.0,0.14722078]
[1752246388715,0.01813918,117710.0,117700.0,0.06179085]
[1752246388943,0.03512965,117710.0,117700.0,0.02665]
[1752246389151,0.03712965,117710.0,117700.0,0.02665]
[1752246389352,0.02863434,117710.0,117700.0,0.02665]
[1752246389667,0.20703881,117710.0,117700.0,0.02665]
[1752246389960,0.19854401,117710.0,117700.0,0.02665]
[1752246390590,0.19004907,117710.0,117700.0,0.02665]
[1752246391223,0.20685934,117710.0,117700.0,0.02665]
[1752246391432,0.03695025,117710.0,117700.0,0.02665]
[1752246391657,0.21535479,117710.0,117700.0,0.02665]
[1752246391862,0.70765342,117710.0,117700.0,0.00525]
[1752246392500,0.70969342,117710.0,117700.0,0.00202]
[1752246392710,0.17843479,117690.0,117680.0,0.00523]
[1752246392928,0.67922858,117690.0,117680.0,0.00725]
[1752246393340,0.70326858,117690.0,117680.0,0.00725]
[1752246393543,0.70326858,117690.0,117680.0,0.00402]
[1752246393544,0.70530858,117690.0,117680.0,0.00402]
[1752246393923,0.20247479,117690.0,117680.0,0.00725]
[1752246394717,0.34463479,117690.0,117680.0,0.00725]
[1752246395031,0.34463479,117690.0,117680.0,0.00825]
[1752246395812,0.34667479,117690.0,117680.0,0.00502]
[1752246396225,0.84746858,117690.0,117680.0,0.00502]
[1752246396764,0.84746858,117690.0,117680.0,0.003]
[1752246397520,0.85067858,117690.0,117680.0,0.003]
[1752246397901,0.84714858,117690.0,117680.0,0.003]
[1752246398525,0.85035858,117690.0,117680.0,0.003]
[1752246399050,0.20772479,117690.0,117680.0,0.003]
[1752246399256,0.34427479,117690.0,117680.0,0.00825]
[1752246399485,0.34631479,117690.0,117680.0,0.00825]
[1752246400292,0.34631479,117690.0,117680.0,0.00502]
[1752246400713,0.84710858,117690.0,117680.0,0.003]
[1752246401116,0.70530858,117690.0,117680.0,0.003]
[1752246401320,0.70530858,117690.0,117680.0,0.00502]
[1752246401527,0.84702858,117690.0,117680.0,0.00502]
[1752246402197,0.34623479,117690.0,117680.0,0.00502]
[1752246402398,0.70530858,117690.0,117680.0,0.00502]
[1752246402613,0.84702858,117690.0,117680.0,0.003]
[1752246403206,1.23030858,117690.0,117680.0,0.003]
[1752246404390,1.21030858,117690.0,117680.0,0.003]
[1752246405922,0.37457632,117690.0,117680.0,0.00502]
[1752246406122,0.36404,117690.0,117680.0,0.05031]
[1752246406329,0.01699111,117700.0,117690.0,0.0209]
[1752246406570,0.05944411,117710.0,117690.0,0.06088399]
[1752246406724,0.36564344,117710.0,117700.0,0.02409]
[1752246406925,0.00014944,117710.0,117700.0,0.34269196]
[1752246407416,0.00014944,117710.0,117700.0,0.62641196]
[1752246407620,0.00014944,117710.0,117700.0,1.12720575]
[1752246407826,0.002,117730.0,117720.0,0.24392461]
[1752246408015,0.002,117730.0,117720.0,0.35373116]
[1752246408251,0.002,117730.0,117720.0,0.35692116]
[1752246409013,0.002,117730.0,117720.0,0.64088116]
[1752246409225,0.003,117730.0,117720.0,0.64088116]
[1752246409423,0.003,117730.0,117720.0,0.70145213]
[1752246410134,0.003,117730.0,117720.0,1.20224592]
[1752246410671,0.003,117730.0,117720.0,0.70145213]
[1752246410883,0.003,117730.0,117720.0,1.20224592]
[1752246411304,0.003,117730.0,117720.0,1.20222881]
[1752246411495,0.002,117730.0,117720.0,1.20222881]
[1752246411703,0.002,117730.0,117720.0,1.20422881]
[1752246411904,0.002,117730.0,117720.0,0.70343502]
[1752246412234,0.002,117730.0,117720.0,0.70643502]
[1752246412952,0.002,117730.0,117720.0,1.20722881]
[1752246413181,0.002,117730.0,117720.0,1.20922881]
[1752246413397,0.002,117730.0,117720.0,0.70843502]
[1752246413612,0.002,117730.0,117720.0,0.70643502]
[1752246413765,0.002,117730.0,117720.0,0.70943502]
[1752246414171,0.002,117730.0,117720.0,1.21224881]
[1752246414394,0.002,117730.0,117720.0,1.26224881]
[1752246414614,0.002,117730.0,117720.0,1.60224881]
[1752246414856,0.002,117750.0,117740.0,0.20988564]
[1752246415068,0.00214983,117750.0,117740.0,1.15552864]
[1752246415274,0.00214983,117750.0,117740.0,1.14285335]
[1752246415474,0.00214983,117750.0,117740.0,1.49667721]
[1752246416075,0.00214983,117750.0,117740.0,1.48818443]
[1752246416515,0.00214983,117750.0,117740.0,1.49767721]
[1752246416847,0.00214983,117750.0,117740.0,1.49867721]
[1752246417248,0.00214983,117750.0,117740.0,1.50067721]
[1752246417819,0.02547026,117780.0,117760.0,0.05764085]
[1752246417959,0.0254699,117780.0,117770.0,0.28364]
[1752246418159,0.03396023,117780.0,117770.0,0.30267386]
[1752246418361,0.00848975,117780.0,117770.0,0.42384464]
[1752246418687,0.02546961,117780.0,117770.0,0.42384464]
[1752246418888,0.00848975,117780.0,117770.0,0.42384464]
[1752246419070,0.02546969,117780.0,117770.0,0.47093383]
[1752246419273,0.00848975,117780.0,117770.0,0.47295383]
[1752246419612,0.09496846,117790.0,117770.0,0.6653761]
[1752246419826,0.0276248,117790.0,117780.0,0.11001993]
[1752246420030,0.0361139,117790.0,117780.0,0.12788379]
[1752246420239,0.0276248,117790.0,117780.0,0.39195058]
[1752246420452,0.0276248,117790.0,117780.0,0.42750799]
[1752246420716,0.0021498,117790.0,117780.0,0.41052798]
[1752246421508,0.0021498,117790.0,117780.0,0.42750835]
[1752246421707,0.0021498,117790.0,117780.0,0.43599825]
[1752246422122,0.0021498,117790.0,117780.0,0.43599832]
[1752246422346,0.0021498,117790.0,117780.0,0.42864436]
[1752246422551,0.0041498,117790.0,117780.0,0.42864436]
[1752246422755,0.0041498,117790.0,117780.0,0.71717947]
[1752246422885,0.0041498,117790.0,117780.0,0.21638568]
[1752246423107,0.0041498,117790.0,117780.0,0.22487601]
[1752246423319,0.0041498,117790.0,117780.0,0.4031743]
[1752246423522,0.0041498,117790.0,117780.0,0.41166441]
[1752246423723,0.0041498,117790.0,117780.0,0.42015431]
[1752246423929,0.0041498,117790.0,117780.0,0.42015438]
[1752246424127,0.0041498,117790.0,117780.0,0.42015431]
[1752246426051,0.0041498,117790.0,117780.0,0.9209481]
[1752246426250,0.0041498,117790.0,117780.0,0.9709481]
[1752246426453,0.0041498,117790.0,117780.0,1.3109481]
[1752246426842,0.00044867,117790.0,117780.0,1.3109481]
[1752246427881,0.00044867,117790.0,117780.0,0.81015431]
[1752246428079,0.002,117810.0,117800.0,0.20978614]
[1752246428293,0.00249922,117810.0,117800.0,0.64286962]
[1752246428522,0.00249922,117810.0,117800.0,0.64605962]
[1752246428928,0.00249922,117810.0,117800.0,1.14685341]
[1752246429725,0.00249922,117810.0,117800.0,0.42667078]
[1752246429726,0.00460922,117810.0,117800.0,0.42667078]
[1752246429949,0.00249922,117810.0,117800.0,0.59733762]
[1752246430149,0.00249922,117810.0,117800.0,0.59733755]
[1752246430390,0.00249922,117810.0,117800.0,0.62842608]
[1752246430529,0.00249922,117810.0,117800.0,0.66331835]
[1752246430729,0.00249922,117810.0,117800.0,0.64634086]
[1752246430919,0.00249922,117810.0,117800.0,0.47656158]
[1752246431121,0.00249922,117810.0,117800.0,0.28801158]
[1752246431423,0.00249922,117810.0,117800.0,0.46946982]
[1752246431670,0.00249922,117810.0,117800.0,0.32782982]
[1752246431829,0.00249922,117810.0,117800.0,0.47795871]
[1752246432287,0.00249922,117810.0,117800.0,0.48644745]
[1752246432490,0.00249922,117810.0,117800.0,0.51753605]
[1752246432619,0.00249922,117810.0,117800.0,0.5488245]
[1752246432822,0.00521162,117830.0,117810.0,0.02302909]
[1752246433037,0.00014968,117830.0,117820.0,0.22904993]
[1752246433282,0.00014968,117830.0,117820.0,0.24473092]
[1752246433443,0.00014968,117830.0,117820.0,0.24798092]
[1752246433854,0.00014968,117830.0,117820.0,0.44924712]
[1752246434170,0.00014968,117830.0,117820.0,0.46145975]
[1752246434374,0.00014968,117830.0,117820.0,0.54753947]
[1752246435159,0.00014968,117830.0,117820.0,0.56451386]
[1752246435378,0.03063899,117830.0,117820.0,0.25725177]
[1752246435593,0.73458298,117830.0,117820.0,0.25725177]
[1752246435834,0.73458298,117830.0,117820.0,0.24271092]
[1752246436051,0.72609633,117830.0,117820.0,0.15728099]
[1752246436500,0.23378912,117830.0,117820.0,0.17300909]
[1752246436916,0.23378912,117830.0,117820.0,0.17303229]
[1752246437579,0.73458291,117830.0,117820.0,0.01570419]
[1752246438009,0.73558291,117830.0,117820.0,0.01570419]
[1752246438677,0.73658291,117830.0,117820.0,0.01570419]
[1752246438905,0.23578912,117830.0,117820.0,0.01570419]
[1752246439170,0.23478912,117830.0,117820.0,0.01570419]
[1752246439376,0.76104991,117830.0,117820.0,0.01570419]
[1752246439607,0.26577242,117830.0,117820.0,0.03160661]
[1752246439813,0.07513636,117830.0,117820.0,0.03160661]
[1752246440020,0.08362316,117830.0,117820.0,0.03160661]
[1752246440223,0.24487285,117830.0,117820.0,0.03160661]
[1752246440430,0.20674986,117830.0,117820.0,0.03160661]
[1752246440637,0.73351365,117830.0,117820.0,0.01570419]
[1752246441714,0.22974986,117830.0,117820.0,0.01570419]
[1752246441923,0.20874986,117830.0,117820.0,0.01570419]
[1752246442473,0.20874986,117830.0,117820.0,0.01575027]
[1752246442874,0.188385,117830.0,117820.0,0.01575027]
[1752246443346,0.02713509,117830.0,117820.0,0.01785027]
[1752246443496,0.2138441,117830.0,117820.0,0.01785027]
[1752246443709,0.19687158,117830.0,117820.0,0.01575027]
[1752246443959,0.188385,117830.0,117820.0,0.01575027]
[1752246444079,0.73474879,117830.0,117820.0,0.01575027]
[1752246445060,0.87762879,117830.0,117820.0,0.01575027]
[1752246445348,0.38235158,117830.0,117820.0,0.01575027]
[1752246445553,0.88611537,117830.0,117820.0,0.01575027]
[1752246446719,0.38532158,117830.0,117820.0,0.01575027]
[1752246446977,0.88611537,117830.0,117820.0,0.01575027]
[1752246448162,0.01697532,117810.0,117800.0,0.16479309]
[1752246448429,0.00848759,117810.0,117800.0,0.30555498]
[1752246448598,0.00848759,117810.0,117800.0,0.30343274]
[1752246449157,0.03394928,117820.0,117800.0,0.30343274]
[1752246449367,0.00810214,117830.0,117810.0,0.08867993]
[1752246449611,0.02507473,117830.0,117820.0,0.00535]
[1752246449774,0.00610214,117830.0,117820.0,0.30774639]
[1752246449982,0.03353723,117840.0,117820.0,0.40166377]
[1752246450187,0.06748295,117840.0,117830.0,0.08867993]
[1752246450428,0.06748295,117840.0,117830.0,0.10660554]
[1752246450832,0.07596881,117840.0,117830.0,0.10660554]
[1752246451369,0.06748295,117840.0,117830.0,0.10660554]
[1752246451574,0.07596881,117840.0,117830.0,0.14334415]
[1752246451999,0.07996874,117840.0,117830.0,0.14334415]
[1752246452237,0.08845525,117840.0,117830.0,0.14334415]
[1752246452481,0.78004338,117840.0,117830.0,0.01582561]
[1752246452695,1.11704338,117840.0,117830.0,0.01582561]
[1752246452910,1.09867797,117840.0,117830.0,0.01582561]
[1752246453112,1.10067797,117840.0,117830.0,0.01582561]
[1752246455019,1.09867797,117840.0,117830.0,0.01582561]
[1752246455435,1.10167797,117840.0,117830.0,0.01582561]
[1752246456393,1.12630282,117840.0,117830.0,0.01582561]
[1752246456802,1.26842282,117840.0,117830.0,0.01582561]
[1752246457004,0.58003903,117840.0,117830.0,0.01582561]
[1752246457201,0.41880267,117840.0,117830.0,0.02117561]
[1752246457408,0.42728875,117840.0,117830.0,0.00535]
[1752246457770,0.42728868,117840.0,117830.0,0.00535]
[1752246457983,0.41880311,117840.0,117830.0,0.00535]
[1752246458189,0.58852476,117840.0,117830.0,0.0021]
[1752246458390,0.01697273,117830.0,117820.0,0.14741188]
[1752246458692,0.20574203,117830.0,117820.0,0.23281993]
[1752246458895,0.20574203,117830.0,117820.0,0.22956993]
[1752246459300,0.1887693,117830.0,117820.0,0.24545201]
[1752246459517,0.68956309,117830.0,117820.0,0.10131201]
[1752246459757,0.1887693,117830.0,117820.0,0.10131201]
[1752246460090,0.1897693,117830.0,117820.0,0.10131201]
[1752246460321,0.18128279,117830.0,117820.0,0.01588208]
[1752246460531,0.72527658,117830.0,117820.0,0.01588208]
[1752246460748,0.32324279,117830.0,117820.0,0.01588208]
[1752246461352,0.02003324,117830.0,117820.0,0.01798208]
[1752246461577,0.001,117830.0,117820.0,0.14956201]
[1752246461920,0.17279606,117830.0,117820.0,0.06426541]
[1752246462137,1.21805294,117830.0,117820.0,0.01588208]
[1752246462652,1.21599294,117830.0,117820.0,0.01588208]
[1752246462973,1.1956261,117830.0,117820.0,0.01588208]
[1752246463388,0.00848759,117810.0,117800.0,0.002]
[1752246463588,0.01697532,117810.0,117800.0,0.10641872]
[1752246463889,0.01697532,117810.0,117800.0,0.15336661]
[1752246464094,0.03395115,117810.0,117800.0,0.15336661]
[1752246464311,0.03395115,117810.0,117800.0,0.10346872]
[1752246464312,0.17825289,117810.0,117800.0,0.10346872]
[1752246464524,1.07370177,117810.0,117800.0,0.01803879]
[1752246464736,1.24076177,117810.0,117800.0,0.01803879]
[1752246464962,1.26625767,117810.0,117800.0,0.01903879]
[1752246465840,1.26625767,117810.0,117800.0,0.02003879]
[1752246466260,1.26625767,117810.0,117800.0,0.01803879]
[1752246466691,1.26725767,117810.0,117800.0,0.01803879]
[1752246466906,0.76646388,117810.0,117800.0,0.01803879]
[1752246467116,1.26725767,117810.0,117800.0,0.01803879]
[1752246467765,1.3556876,117810.0,117800.0,0.01803879]
[1752246468217,1.94191132,117810.0,117800.0,0.01803879]
[1752246468427,1.3556876,117810.0,117800.0,0.0095506]
[1752246468848,1.3556876,117810.0,117800.0,0.00106241]
[1752246469943,0.47957256,117790.0,117780.0,0.002]
[1752246470148,1.12280635,117790.0,117780.0,0.00249922]
[1752246470593,1.12596635,117790.0,117780.0,0.00249922]
[1752246471257,0.62517256,117790.0,117780.0,0.00249922]
[1752246471471,1.12596635,117790.0,117780.0,0.00249922]
[1752246471887,1.46793635,117790.0,117780.0,0.00249922]
[1752246472013,1.46793635,117790.0,117780.0,0.00349922]
[1752246472235,1.46280635,117790.0,117780.0,0.00349922]
[1752246474145,0.96201256,117790.0,117780.0,0.00349922]
[1752246474371,1.46280635,117790.0,117780.0,0.00349922]
[1752246474581,0.96201256,117790.0,117780.0,0.00349922]
[1752246474782,1.46280635,117790.0,117780.0,0.00349922]
[1752246475467,0.96201256,117790.0,117780.0,0.00349922]
[1752246475676,1.48828335,117790.0,117780.0,0.00349922]
[1752246477143,0.98748956,117790.0,117780.0,0.00349922]
[1752246477345,1.48828335,117790.0,117780.0,0.00349922]
[1752246478600,1.48897186,117790.0,117760.0,0.002]
[1752246478848,0.56920427,117770.0,117760.0,0.002]
[1752246479052,0.81920427,117770.0,117760.0,0.0021498]
[1752246479497,0.526836,117750.0,117740.0,0.002]
[1752246479913,0.35698462,117750.0,117740.0,0.002]
[1752246480125,0.53532849,117750.0,117740.0,0.0466]
[1752246480345,0.52683629,117750.0,117740.0,0.002]
[1752246480576,1.01913773,117750.0,117740.0,0.002]
[1752246480780,1.08947938,117750.0,117740.0,0.002]
[1752246480994,0.52686774,117730.0,117720.0,0.002]
[1752246481206,1.27766153,117730.0,117720.0,0.00214983]
[1752246481454,0.52689949,117710.0,117700.0,0.002]
[1752246481663,0.34,117710.0,117700.0,0.17192353]
[1752246481876,0.34,117710.0,117700.0,0.15077197]
[1752246482083,0.34,117710.0,117700.0,0.3206955]
[1752246482302,0.025488,117710.0,117700.0,0.51266436]
[1752246482511,0.53536131,117730.0,117710.0,0.0438]
[1752246482746,0.03398022,117720.0,117710.0,0.13135379]
[1752246482952,0.025486,117720.0,117710.0,0.16329146]
[1752246483182,0.03398008,117720.0,117710.0,0.16329146]
[1752246483586,0.025486,117720.0,117710.0,0.16329146]
[1752246484674,0.03398008,117720.0,117710.0,0.16329146]
[1752246484882,0.025486,117720.0,117710.0,0.16329146]
[1752246485301,0.04247445,117720.0,117710.0,0.16329146]
[1752246485517,0.03398015,117720.0,117710.0,0.16329146]
[1752246485745,0.03498015,117720.0,117710.0,0.16329146]
[1752246485961,0.026486,117720.0,117710.0,0.16329146]
[1752246486387,0.0434743,117720.0,117710.0,0.16329146]
[1752246486611,0.03498008,117720.0,117710.0,0.16329146]
[1752246486824,0.0434743,117720.0,117710.0,0.16329146]
[1752246487254,0.026486,117720.0,117710.0,0.16329146]
[1752246487465,0.03498008,117720.0,117710.0,0.16329146]
[1752246487673,0.026486,117720.0,117710.0,0.16329146]
[1752246488088,0.02648274,117720.0,117710.0,0.16329146]
[1752246488303,0.0179883,117720.0,117710.0,0.16329146]
[1752246488517,0.1963774,117720.0,117710.0,0.16329146]
[1752246488721,0.1793891,117720.0,117710.0,0.08542993]
[1752246488920,0.02548527,117710.0,117700.0,0.21716204]
[1752246489186,0.19539479,117710.0,117700.0,0.12807197]
[1752246489361,0.01699032,117710.0,117700.0,0.28055197]
[1752246489577,0.01698996,117710.0,117700.0,0.28055197]
[1752246489781,0.02548519,117710.0,117700.0,0.12807197]
[1752246489996,0.025486,117730.0,117710.0,0.0446]
[1752246490205,0.025486,117730.0,117720.0,0.197]
[1752246490206,0.00849336,117730.0,117720.0,0.197]
[1752246490450,0.01698679,117730.0,117720.0,0.197]
[1752246490656,0.02548036,117730.0,117720.0,0.197]
[1752246490904,0.01698679,117730.0,117720.0,0.197]
[1752246491113,0.05096536,117730.0,117720.0,0.197]
[1752246491324,0.02548036,117730.0,117720.0,0.23378599]
[1752246491674,0.026485,117730.0,117720.0,0.23378599]
[1752246491882,0.026485,117730.0,117720.0,0.31921592]
[1752246492247,0.027485,117730.0,117720.0,0.50609989]
[1752246492454,0.002,117730.0,117720.0,1.03237671]
[1752246492660,0.001,117730.0,117720.0,0.53762955]
[1752246492873,0.001,117730.0,117720.0,0.54612377]
[1752246493085,0.003,117730.0,117720.0,0.54612377]
[1752246493293,0.003,117730.0,117720.0,1.06269333]
[1752246493910,0.003,117730.0,117720.0,1.40269333]
[1752246495152,0.001,117730.0,117720.0,1.40269333]
[1752246495556,0.001,117730.0,117720.0,1.40369333]
[1752246495996,0.001,117730.0,117720.0,1.40269333]
[1752246496404,0.001,117730.0,117720.0,1.40469333]
[1752246496618,0.001,117730.0,117720.0,1.45469333]
[1752246497456,0.002,117750.0,117740.0,0.19534479]
[1752246497666,0.00214958,117750.0,117740.0,0.68260454]
[1752246498271,0.00214958,117750.0,117740.0,0.68263326]
[1752246498711,0.00214958,117750.0,117740.0,0.66764748]
[1752246498913,0.00214958,117750.0,117740.0,0.48202932]
[1752246499122,0.00214958,117750.0,117740.0,0.68148826]
[1752246499340,0.00214958,117750.0,117740.0,1.19926783]
[1752246499495,0.00214958,117750.0,117740.0,1.53926783]
[1752246500086,0.00214958,117750.0,117740.0,1.03847404]
[1752246501477,0.00214958,117750.0,117740.0,1.02998126]
[1752246501693,0.00214958,117750.0,117740.0,1.03847404]
[1752246501912,0.00214958,117750.0,117740.0,1.02986043]
[1752246502115,0.00214958,117750.0,117740.0,1.04684606]
[1752246502496,0.00214958,117750.0,117740.0,1.01287429]
[1752246502699,0.00214958,117750.0,117740.0,0.84300849]
[1752246502905,0.00214958,117750.0,117740.0,0.85150178]
[1752246503110,0.00214958,117750.0,117740.0,1.02986072]
[1752246503522,0.00214958,117750.0,117740.0,1.02136758]
[1752246503665,0.00214958,117750.0,117740.0,1.04684671]
[1752246503868,0.00214958,117750.0,117740.0,0.85150178]
[1752246504104,0.00214958,117750.0,117740.0,0.80120849]
[1752246504319,0.00214958,117750.0,117740.0,0.97960743]
[1752246504527,0.00214958,117750.0,117740.0,1.541587]
[1752246505538,0.00214958,117750.0,117740.0,1.04079321]
[1752246505744,0.00214958,117750.0,117740.0,1.541587]
[1752246505957,0.002,117770.0,117760.0,0.23691161]
[1752246506162,0.002,117770.0,117760.0,1.18380735]
[1752246506499,0.002,117770.0,117760.0,1.5383482]
[1752246506938,0.002,117790.0,117780.0,0.2098193]
[1752246507146,0.0021498,117790.0,117780.0,1.15424751]
[1752246507366,0.0021498,117790.0,117780.0,0.65345372]
[1752246507579,0.0021498,117790.0,117780.0,0.69274104]
[1752246507790,0.09495702,117810.0,117790.0,0.01454085]
[1752246508008,0.11615624,117810.0,117800.0,0.30072]
[1752246508203,0.06999268,117810.0,117800.0,0.31652449]
[1752246509231,0.06999268,117810.0,117800.0,0.41044338]
[1752246509465,0.06999268,117810.0,117800.0,0.43874041]
[1752246509693,0.00249922,117810.0,117800.0,0.43874041]
[1752246509904,0.00848694,117820.0,117800.0,0.43874041]
[1752246510105,0.01697403,117820.0,117800.0,0.43874041]
[1752246510314,0.00848694,117820.0,117800.0,0.60851817]
[1752246510730,0.75011028,117830.0,117800.0,0.63402448]
[1752246510949,0.40177287,117830.0,117810.0,0.08542993]
[1752246511157,0.40177287,117830.0,117820.0,0.29972]
[1752246511376,0.33661587,117830.0,117820.0,0.31552449]
[1752246511592,0.3366158,117830.0,117820.0,0.31552449]
[1752246511832,0.34510238,117830.0,117820.0,0.31552449]
[1752246512044,0.52332517,117830.0,117820.0,0.31552449]
[1752246512460,0.52725251,117830.0,117820.0,0.31552449]
[1752246512885,0.54845251,117830.0,117820.0,0.31552449]
[1752246513103,0.55145251,117830.0,117820.0,0.31556449]
[1752246513309,0.54296593,117830.0,117820.0,0.31556449]
[1752246514404,1.04775972,117830.0,117820.0,0.31556449]
[1752246514820,0.47947247,117830.0,117820.0,0.35939202]